bitfinex-derivatives/quotes_BTCF0:USTF0_20241214
["timestamp","ask_amount","ask_price","bid_price","bid_amount"]
[1734210001504,0.19895653,100800.0,100790.0,0.50477248]
[1734210003598,0.22254391,100800.0,100790.0,0.44271]
[1734210004102,0.22304391,100800.0,100790.0,0.44271]
[1734210004593,0.31112401,100800.0,100790.0,0.44271]
[1734210004797,0.31112401,100800.0,100790.0,0.50477248]
[1734210005897,0.31112401,100800.0,100790.0,0.44271]
[1734210006306,0.24906153,100800.0,100790.0,0.50477248]
[1734210006804,0.11137643,100800.0,100790.0,0.50477248]
[1734210008699,0.1005,100800.0,100790.0,0.50477248]
[1734210008894,0.1005,100800.0,100790.0,0.56683496]
[1734210009604,0.112696,100820.0,100790.0,1.09450621]
[1734210009806,0.12344048,100820.0,100810.0,0.83326248]
[1734210010407,0.14319757,100820.0,100810.0,0.83326248]
[1734210011112,0.20526005,100820.0,100810.0,0.7712]
[1734210011402,0.20526005,100820.0,100810.0,0.7216]
[1734210011403,0.3257667,100820.0,100810.0,0.7216]
[1734210012805,0.44330943,100820.0,100810.0,0.7216]
[1734210013309,0.44330943,100820.0,100800.0,0.410404]
[1734210013613,0.17468903,100810.0,100800.0,0.410404]
[1734210013904,0.17468903,100810.0,100800.0,0.3608]
[1734210014109,0.17518903,100810.0,100800.0,0.3608]
[1734210014801,0.0005,100810.0,100800.0,0.50489403]
[1734210015313,0.23127867,100820.0,100810.0,0.0496]
[1734210015514,0.14319857,100820.0,100810.0,0.4104]
[1734210015909,0.23127867,100820.0,100810.0,0.4104]
[1734210016212,0.23177867,100820.0,100810.0,0.4104]
[1734210016403,0.14369857,100820.0,100810.0,0.4104]
[1734210017204,0.23127867,100820.0,100810.0,0.4104]
[1734210018010,0.3257677,100820.0,100810.0,0.4104]
[1734210018309,0.0496,100810.0,100800.0,0.410405]
[1734210018508,0.23216913,100810.0,100800.0,0.410405]
[1734210020218,0.34971186,100810.0,100800.0,0.3608]
[1734210020513,0.38161186,100810.0,100800.0,0.3608]
[1734210021807,0.04961,100790.0,100780.0,0.61917325]
[1734210022111,0.04961,100790.0,100780.0,0.801912]
[1734210022312,0.14409903,100790.0,100780.0,0.771212]
[1734210022501,0.23212263,100790.0,100780.0,0.771212]
[1734210024110,0.34966536,100790.0,100780.0,0.771212]
[1734210026708,0.25517633,100790.0,100780.0,0.771212]
[1734210027202,0.25529627,100790.0,100780.0,0.771212]
[1734210028213,0.16715273,100790.0,100780.0,0.771212]
[1734210029619,0.08816821,100790.0,100780.0,1.31287918]
[1734210029814,0.08816821,100790.0,100780.0,1.34407918]
[1734210031821,0.21675773,100800.0,100780.0,1.29446718]
[1734210031822,0.25531694,100800.0,100780.0,1.29446718]
[1734210032116,0.25531694,100800.0,100790.0,0.44321]
[1734210032811,0.26609939,100800.0,100790.0,0.44321]
[1734210033211,0.28618326,100800.0,100790.0,0.44321]
[1734210034418,0.28618326,100800.0,100790.0,0.62127125]
[1734210037311,0.28618326,100800.0,100790.0,0.71576028]
[1734210037312,0.09895066,100800.0,100790.0,0.71576028]
[1734210037517,0.09895066,100800.0,100790.0,0.95317718]
[1734210037714,0.25531194,100810.0,100800.0,0.049605]
[1734210037915,0.25531194,100810.0,100800.0,0.61976625]
[1734210038120,0.20571094,100810.0,100800.0,0.71425528]
[1734210038321,0.098737,100810.0,100800.0,0.74525528]
[1734210041625,0.098737,100810.0,100800.0,0.98267218]
[1734210041815,0.20719947,100820.0,100810.0,0.0496]
[1734210042019,0.20719947,100820.0,100810.0,0.71505028]
[1734210042526,0.0005,100830.0,100820.0,0.049595]
[1734210042729,0.14705292,100840.0,100820.0,1.45896036]
[1734210042918,0.19880374,100850.0,100840.0,0.049585]
[1734210043115,0.19880374,100850.0,100840.0,0.410385]
[1734210043436,0.05175082,100850.0,100840.0,0.410385]
[1734210044720,0.05175082,100850.0,100840.0,0.50487403]
[1734210044918,0.00216782,100850.0,100840.0,0.50487403]
[1734210045219,0.01273585,100850.0,100840.0,0.50487403]
[1734210045414,0.00216782,100850.0,100840.0,0.50487403]
[1734210045619,0.00216782,100850.0,100840.0,0.53637403]
[1734210046627,0.082871,100870.0,100860.0,0.049576]
[1734210046815,0.147571,100870.0,100860.0,0.410376]
[1734210047118,0.01048818,100880.0,100870.0,0.049571]
[1734210047320,0.62980007,100900.0,100870.0,0.049571]
[1734210047321,0.56746696,100900.0,100870.0,0.50486003]
[1734210047622,0.21574542,100900.0,100890.0,0.410361]
[1734210049124,0.16160217,100900.0,100890.0,0.410361]
[1734210052826,0.16160217,100900.0,100890.0,0.409361]
[1734210054823,0.16160217,100900.0,100890.0,0.50385003]
[1734210055620,0.11204417,100900.0,100890.0,0.50385003]
[1734210055838,0.1,100900.0,100890.0,0.50385003]
[1734210056126,0.149556,100900.0,100890.0,0.50385003]
[1734210056533,0.149556,100900.0,100890.0,0.409361]
[1734210059831,0.149556,100900.0,100890.0,0.771161]
[1734210060625,0.24404503,100900.0,100890.0,0.7216]
[1734210060924,0.149556,100900.0,100890.0,0.7216]
[1734210061129,0.149556,100900.0,100890.0,0.771161]
[1734210061327,0.149556,100900.0,100890.0,0.86565003]
[1734210061629,0.149556,100900.0,100890.0,0.771161]
[1734210063823,0.24404503,100900.0,100890.0,0.7216]
[1734210064018,0.049561,100890.0,100880.0,0.3608]
[1734210064219,0.14455003,100890.0,100880.0,0.3608]
[1734210064430,0.17655003,100890.0,100880.0,0.3608]
[1734210065141,0.17605003,100890.0,100880.0,0.3608]
[1734210065431,0.081561,100890.0,100880.0,0.3608]
[1734210070030,0.09224272,100890.0,100880.0,0.3608]
[1734210070426,0.09224272,100890.0,100880.0,0.410366]
[1734210070621,0.06024272,100890.0,100880.0,0.50485503]
[1734210070921,0.01068172,100890.0,100880.0,0.50485503]
[1734210071125,0.181259,100900.0,100890.0,0.049561]
[1734210071332,0.181259,100900.0,100890.0,0.410361]
[1734210072537,0.181259,100900.0,100890.0,0.3608]
[1734210073130,0.27574803,100900.0,100890.0,0.3608]
[1734210073438,0.42280095,100900.0,100890.0,0.3608]
[1734210073935,0.59939206,100900.0,100890.0,0.3608]
[1734210074329,0.59925459,100900.0,100890.0,0.3608]
[1734210075030,0.60993708,100900.0,100890.0,0.3608]
[1734210075231,0.46302163,100900.0,100890.0,0.3608]
[1734210076436,0.3368326,100900.0,100890.0,0.3608]
[1734210076738,0.3368326,100900.0,100890.0,0.410361]
[1734210079327,0.16024149,100900.0,100890.0,0.410361]
[1734210079528,0.16024149,100900.0,100890.0,0.45528903]
[1734210079529,0.11068249,100900.0,100890.0,0.45528903]
[1734210079737,0.42386349,100900.0,100890.0,0.50485003]
[1734210080035,0.24727238,100900.0,100890.0,0.68288413]
[1734210080456,0.24727238,100900.0,100890.0,0.71428413]
[1734210081760,0.1,100900.0,100890.0,1.10877316]
[1734210081957,0.1,100900.0,100890.0,1.25167046]
[1734210082354,0.1,100900.0,100890.0,1.34615949]
[1734210083065,0.1,100900.0,100890.0,0.95167046]
[1734210084574,0.1,100900.0,100890.0,0.77363636]
[1734210085565,0.1,100900.0,100890.0,0.95156664]
[1734210089867,0.1,100900.0,100890.0,0.85707761]
[1734210090082,0.24404503,100900.0,100890.0,0.58829128]
[1734210090365,0.24404503,100900.0,100890.0,0.410361]
[1734210090366,0.215356,100900.0,100890.0,0.410361]
[1734210090975,0.1658,100900.0,100890.0,0.50485003]
[1734210091575,0.1658,100900.0,100890.0,0.68278031]
[1734210092779,0.1325,100900.0,100890.0,0.68278031]
[1734210093784,0.1325,100900.0,100890.0,1.04358031]
[1734210096377,0.1325,100900.0,100890.0,1.28096664]
[1734210098969,0.1325,100900.0,100890.0,1.2809696]
[1734210099667,0.1325,100900.0,100890.0,1.10303636]
[1734210100480,0.1325,100900.0,100890.0,1.39945969]
[1734210100874,0.1325,100900.0,100890.0,1.10295484]
[1734210101166,0.0421394,100910.0,100900.0,0.049556]
[1734210101353,0.0421394,100910.0,100900.0,0.92011868]
[1734210103646,0.0421394,100910.0,100900.0,0.74214426]
[1734210104151,0.30392965,100910.0,100900.0,0.82563591]
[1734210104352,0.24224062,100910.0,100900.0,0.58833668]
[1734210105350,0.24224062,100910.0,100900.0,0.82563591]
[1734210108355,0.24224062,100910.0,100900.0,0.64765523]
[1734210108542,0.389513,100910.0,100900.0,0.82583564]
[1734210109557,0.389513,100910.0,100900.0,0.64765523]
[1734210110457,0.389513,100910.0,100900.0,1.18668718]
[1734210113050,0.389513,100910.0,100900.0,1.00845523]
[1734210113757,0.24224062,100910.0,100900.0,1.30496008]
[1734210114660,0.389513,100910.0,100900.0,1.00845523]
[1734210117660,0.389513,100910.0,100900.0,0.64765523]
[1734210118160,0.356713,100910.0,100900.0,0.74214426]
[1734210118964,0.356713,100910.0,100900.0,0.64765523]
[1734210119455,0.23896278,100910.0,100900.0,0.64765523]
[1734210120360,0.35691981,100910.0,100900.0,0.94416008]
[1734210120671,0.35691981,100910.0,100900.0,1.1868901]
[1734210120962,0.35691981,100910.0,100900.0,1.18695706]
[1734210121160,0.12869643,100910.0,100900.0,1.04414686]
[1734210121362,0.12869643,100910.0,100900.0,1.07444686]
[1734210121665,0.12869643,100910.0,100900.0,1.10684686]
[1734210124758,0.12869643,100910.0,100900.0,1.46265268]
[1734210125162,0.11795703,100920.0,100910.0,0.049551]
[1734210125469,0.37995918,100930.0,100910.0,0.99512654]
[1734210125765,0.37995918,100930.0,100920.0,0.64790915]
[1734210126361,0.37945918,100930.0,100920.0,0.64790915]
[1734210126563,0.2321868,100930.0,100920.0,0.82601345]
[1734210127271,0.37995918,100930.0,100920.0,0.82601345]
[1734210127566,0.37629022,100930.0,100920.0,0.77646745]
[1734210127755,0.37629022,100930.0,100920.0,0.73746745]
[1734210127959,0.37629022,100930.0,100920.0,0.4999043]
[1734210128363,0.38610779,100930.0,100920.0,0.4999043]
[1734210129369,0.38660779,100930.0,100920.0,0.4999043]
[1734210130072,0.29211876,100930.0,100920.0,0.4999043]
[1734210130274,0.37687902,100930.0,100920.0,0.64393933]
[1734210130468,0.22960664,100930.0,100920.0,0.88150248]
[1734210132971,0.22960664,100930.0,100920.0,0.78701345]
[1734210136589,0.22960664,100930.0,100920.0,0.5494503]
[1734210137777,0.32409567,100930.0,100920.0,0.4999043]
[1734210137976,0.50266805,100930.0,100920.0,0.3218]
[1734210138477,0.38480779,100930.0,100920.0,0.3218]
[1734210141271,0.9221989,100930.0,100910.0,0.1781043]
[1734210141472,0.4486069,100920.0,100910.0,0.3608]
[1734210141682,0.43989977,100920.0,100910.0,0.3608]
[1734210141980,0.32200433,100920.0,100910.0,0.3608]
[1734210142277,0.43990208,100920.0,100910.0,0.3608]
[1734210142872,0.32200433,100920.0,100910.0,0.3608]
[1734210147583,0.32200433,100920.0,100900.0,0.13061199]
[1734210147584,1.07729336,100920.0,100900.0,0.13061199]
[1734210147881,0.049556,100900.0,100880.0,0.00148685]
[1734210148185,0.57885457,100890.0,100880.0,0.00148685]
[1734210148479,0.35664171,100890.0,100880.0,0.00198685]
[1734210149076,0.47436653,100890.0,100880.0,0.3613]
[1734210149373,0.47436653,100890.0,100880.0,0.3608]
[1734210149570,0.32707485,100890.0,100880.0,0.3608]
[1734210150284,0.32707485,100890.0,100880.0,0.3613]
[1734210151286,0.15052482,100890.0,100880.0,0.45528903]
[1734210151592,0.0328,100890.0,100880.0,0.410366]
[1734210151776,0.0328,100890.0,100880.0,0.443366]
[1734210152376,0.0328,100890.0,100880.0,0.443866]
[1734210153383,0.0328,100890.0,100880.0,0.443366]
[1734210153889,0.0928633,100890.0,100880.0,0.443366]
[1734210154283,0.0928633,100890.0,100880.0,0.443866]
[1734210155287,0.0928633,100890.0,100880.0,0.3613]
[1734210155288,0.18735233,100890.0,100880.0,0.3613]
[1734210155587,0.21855233,100890.0,100880.0,0.3613]
[1734210155894,0.33627715,100890.0,100880.0,0.0005]
[1734210156382,0.21855233,100890.0,100880.0,0.0005]
[1734210156584,0.33627715,100890.0,100880.0,0.0005]
[1734210157181,0.21855233,100890.0,100880.0,0.0005]
[1734210157680,0.33627715,100890.0,100880.0,0.0005]
[1734210158590,0.21855233,100890.0,100880.0,0.0005]
[1734210158985,0.21855233,100890.0,100880.0,0.050066]
[1734210160296,0.21855233,100890.0,100880.0,0.049566]
[1734210162381,0.11753305,100900.0,100890.0,0.049561]
[1734210162581,0.08814978,100900.0,100890.0,0.441461]
[1734210162882,0.049556,100900.0,100890.0,0.441461]
[1734210163590,0.13770578,100900.0,100890.0,0.441461]
[1734210166195,0.23601108,100910.0,100900.0,0.049556]
[1734210166387,0.11847803,100910.0,100900.0,0.53494503]
[1734210168501,0.0983793,100910.0,100900.0,0.53494503]
[1734210172398,0.08814978,100910.0,100900.0,0.53494503]
[1734210172693,0.08963704,100920.0,100910.0,0.049551]
[1734210173000,0.00148726,100920.0,100910.0,0.56844003]
[1734210173299,0.00198726,100920.0,100910.0,0.56844003]
[1734210174297,0.00148726,100920.0,100910.0,0.56844003]
[1734210174787,0.0117868,100920.0,100910.0,0.56844003]
[1734210174991,0.00148726,100920.0,100910.0,0.56844003]
[1734210175399,0.00198726,100920.0,100910.0,0.56844003]
[1734210176400,0.00148726,100920.0,100910.0,0.56844003]
[1734210177301,0.00198726,100920.0,100910.0,0.56844003]
[1734210177888,0.00198726,100920.0,100910.0,0.50484003]
[1734210178093,0.05153326,100920.0,100910.0,0.410351]
[1734210178294,0.08423326,100920.0,100910.0,0.410351]
[1734210178906,0.082746,100920.0,100910.0,0.410351]
[1734210179603,0.083246,100920.0,100910.0,0.410351]
[1734210180199,0.27613305,100920.0,100910.0,0.410351]
[1734210180501,0.049551,100910.0,100900.0,0.410354]
[1734210180702,0.081551,100910.0,100900.0,0.410354]
[1734210181100,0.16970078,100910.0,100900.0,0.410354]
[1734210181908,0.13770078,100910.0,100900.0,0.410354]
[1734210182707,0.049551,100910.0,100900.0,0.410354]
[1734210185600,0.049556,100900.0,100890.0,0.41036]
[1734210185809,0.23120578,100900.0,100890.0,0.41036]
[1734210186103,0.049561,100890.0,100880.0,0.4118495]
[1734210186306,0.14405003,100890.0,100880.0,0.4118495]
[1734210186507,0.23219981,100890.0,100880.0,0.410363]
[1734210186808,0.34973286,100890.0,100880.0,0.410363]
[1734210188602,0.34973286,100890.0,100880.0,0.3608]
[1734210190204,0.35994403,100890.0,100880.0,0.3608]
[1734210194116,0.35994403,100890.0,100870.0,0.099134]
[1734210194410,0.35994403,100890.0,100880.0,0.3608]
[1734210194615,0.265455,100890.0,100880.0,0.50485503]
[1734210194814,0.01021117,100890.0,100880.0,0.50485503]
[1734210195118,0.16960678,100900.0,100890.0,0.049561]
[1734210195815,0.16960678,100900.0,100890.0,0.410361]
[1734210196012,0.081457,100900.0,100890.0,0.410361]
[1734210196710,0.12004978,100900.0,100890.0,0.50485003]
[1734210196909,0.04231265,100900.0,100890.0,0.50485003]
[1734210197420,0.27468964,100910.0,100900.0,0.049556]
[1734210197723,0.15715659,100910.0,100900.0,0.410356]
[1734210198724,0.08814978,100910.0,100900.0,0.50484503]
[1734210198918,0.68143083,100920.0,100900.0,0.48608903]
[1734210199224,0.68143083,100920.0,100910.0,0.049551]
[1734210200611,0.68143083,100920.0,100910.0,0.410351]
[1734210200612,0.32063083,100920.0,100910.0,0.410351]
[1734210201021,0.33097486,100920.0,100910.0,0.410351]
[1734210202216,0.049551,100910.0,100900.0,0.3608]
[1734210202528,0.049551,100910.0,100900.0,0.410356]
[1734210202529,0.13776003,100910.0,100900.0,0.410356]
[1734210205022,0.30023111,100910.0,100890.0,0.41036]
[1734210205220,0.049556,100900.0,100890.0,0.41036]
[1734210206023,0.13776503,100900.0,100890.0,0.41036]
[1734210207021,0.08820903,100900.0,100890.0,0.41036]
[1734210210816,0.13776503,100900.0,100890.0,0.41036]
[1734210211125,0.34978711,100900.0,100890.0,0.41036]
[1734210211328,0.38038711,100900.0,100890.0,0.41036]
[1734210211628,0.29604888,100900.0,100890.0,0.41036]
[1734210213326,0.20783985,100900.0,100890.0,0.41036]
[1734210213926,0.24063985,100900.0,100890.0,0.41036]
[1734210217233,0.38793153,100900.0,100890.0,0.41036]
[1734210217927,0.24063985,100900.0,100890.0,0.41036]
[1734210218129,0.38793153,100900.0,100890.0,0.41036]
[1734210218525,0.15828385,100900.0,100890.0,0.50484903]
[1734210219328,0.15828385,100900.0,100890.0,0.74192718]
[1734210222925,0.08838596,100900.0,100890.0,0.83641621]
[1734210223129,0.20591901,100910.0,100900.0,0.049556]
[1734210223332,0.20591901,100910.0,100900.0,1.13580313]
[1734210223532,0.08838596,100910.0,100900.0,1.36162915]
[1734210223740,0.08838596,100910.0,100900.0,1.12421158]
[1734210223929,0.08838596,100910.0,100900.0,1.36162946]
[1734210225935,0.20641901,100920.0,100900.0,1.12421158]
[1734210226239,0.20641901,100920.0,100910.0,0.74221594]
[1734210226443,0.20591901,100920.0,100910.0,0.50484003]
[1734210226831,0.11753305,100920.0,100910.0,0.50484003]
[1734210227234,0.20591166,100920.0,100910.0,0.50484003]
[1734210227543,0.20641166,100920.0,100910.0,0.50484003]
[1734210228443,0.20591166,100920.0,100910.0,0.50484003]
[1734210229428,0.25595766,100920.0,100910.0,0.410351]
[1734210229834,0.25595766,100920.0,100910.0,0.50484003]
[1734210230535,0.20641166,100920.0,100910.0,0.50484003]
[1734210232945,0.08887861,100920.0,100910.0,0.50484003]
[1734210233141,0.08887861,100920.0,100910.0,0.74221594]
[1734210235259,0.08887861,100920.0,100910.0,0.50484003]
[1734210236066,0.0005,100920.0,100910.0,0.50484003]
[1734210236767,0.0005,100920.0,100910.0,0.74221594]
[1734210239966,0.0005,100920.0,100910.0,0.50484003]
[1734210241372,0.08887861,100920.0,100910.0,0.50484003]
[1734210241666,0.08837861,100920.0,100910.0,0.50484003]
[1734210241867,0.31670742,100930.0,100920.0,0.049546]
[1734210242064,0.31670742,100930.0,100920.0,0.410346]
[1734210242570,0.31720742,100930.0,100920.0,0.410346]
[1734210243461,0.31670742,100930.0,100920.0,0.410346]
[1734210243871,0.26716542,100930.0,100920.0,0.50483503]
[1734210244169,0.2477121,100930.0,100920.0,0.50483503]
[1734210244474,0.0322,100930.0,100920.0,0.50483503]
[1734210244668,0.0322,100930.0,100920.0,0.74221094]
[1734210244860,0.0322,100930.0,100920.0,0.80601094]
[1734210245467,0.0317,100930.0,100920.0,0.80601094]
[1734210246475,0.0322,100930.0,100920.0,0.80601094]
[1734210247673,0.0317,100930.0,100920.0,0.80601094]
[1734210248475,0.12057861,100930.0,100920.0,0.80601094]
[1734210249475,0.12007861,100930.0,100920.0,0.80601094]
[1734210249664,0.0317,100930.0,100920.0,0.80601094]
[1734210249867,0.12007861,100930.0,100920.0,0.80601094]
[1734210250065,0.0317,100930.0,100920.0,0.80601094]
[1734210250268,0.12007861,100930.0,100920.0,0.80601094]
[1734210250468,0.12057861,100930.0,100920.0,0.80601094]
[1734210251065,0.08887861,100930.0,100920.0,0.90049997]
[1734210251269,0.0005,100930.0,100920.0,1.23093436]
[1734210251470,0.21640265,100940.0,100930.0,0.049541]
[1734210251673,0.21640265,100940.0,100930.0,0.74210813]
[1734210252462,0.21690265,100940.0,100930.0,0.74210813]
[1734210253276,0.21690265,100940.0,100930.0,0.77128782]
[1734210253463,0.21640265,100940.0,100930.0,0.77128782]
[1734210254067,0.23911166,100950.0,100930.0,1.0696856]
[1734210254369,0.08837861,100950.0,100940.0,0.77119881]
[1734210254573,0.27855776,100960.0,100950.0,0.049531]
[1734210254774,0.27855776,100960.0,100950.0,0.70934665]
[1734210255169,0.16102471,100960.0,100950.0,0.50452817]
[1734210255369,0.16102471,100960.0,100950.0,0.410331]
[1734210255570,0.16102471,100960.0,100950.0,0.50452817]
[1734210255770,0.21635776,100960.0,100950.0,0.50452817]
[1734210256175,0.09882471,100960.0,100950.0,0.50452817]
[1734210256875,0.14835171,100960.0,100950.0,0.410331]
[1734210257176,0.26588476,100960.0,100950.0,0.410331]
[1734210257373,0.14835171,100960.0,100950.0,0.410331]
[1734210257574,0.26588476,100960.0,100950.0,0.410331]
[1734210258873,0.17750615,100960.0,100950.0,0.410331]
[1734210259183,0.26580166,100960.0,100950.0,0.410331]
[1734210259484,0.26630166,100960.0,100950.0,0.410331]
[1734210260482,0.17800615,100960.0,100950.0,0.410331]
[1734210260873,0.26629873,100960.0,100950.0,0.410331]
[1734210262178,0.26629873,100960.0,100950.0,0.3608]
[1734210262383,0.049531,100950.0,100940.0,0.049534]
[1734210262573,0.35045537,100950.0,100940.0,0.049534]
[1734210264171,0.049536,100940.0,100930.0,0.410339]
[1734210264377,0.13782732,100940.0,100930.0,0.410339]
[1734210266083,0.13782732,100940.0,100930.0,0.049539]
[1734210266274,0.13782732,100940.0,100930.0,0.410339]
[1734210267789,0.13782732,100940.0,100930.0,0.58810511]
[1734210269086,0.13782732,100940.0,100930.0,0.68230228]
[1734210269274,0.25536037,100940.0,100930.0,0.68230228]
[1734210269479,0.13782732,100940.0,100930.0,0.68230228]
[1734210271178,0.14781638,100940.0,100930.0,0.91948357]
[1734210272179,0.26534943,100940.0,100930.0,0.91948357]
[1734210272481,0.08841555,100940.0,100930.0,0.74171746]
[1734210272685,0.08841555,100950.0,100940.0,0.049536]
[1734210272878,0.08841555,100950.0,100940.0,1.01506831]
[1734210274082,0.08891555,100960.0,100950.0,0.049531]
[1734210274275,0.0005,100960.0,100950.0,1.13582591]
[1734210274479,0.12121555,100970.0,100950.0,1.49163173]
[1734210274678,0.12121555,100970.0,100960.0,0.86988306]
[1734210274881,0.12121555,100970.0,100960.0,0.95241006]
[1734210275080,0.0328,100970.0,100960.0,0.95241006]
[1734210275483,0.21766971,100980.0,100970.0,0.049522]
[1734210275682,0.21766971,100980.0,100970.0,0.50451917]
[1734210277090,0.10013666,100980.0,100970.0,0.50451917]
[1734210277498,0.08841555,100980.0,100970.0,0.50451917]
[1734210277791,0.08841555,100980.0,100970.0,0.56771917]
[1734210278193,0.2663486,100990.0,100980.0,0.049517]
[1734210278393,0.2663486,100990.0,100980.0,0.50451417]
[1734210279191,0.26625374,100990.0,100980.0,0.50451417]
[1734210279595,0.31576574,100990.0,100980.0,0.410317]
[1734210280479,0.22744505,100990.0,100980.0,0.410317]
[1734210280878,0.69277248,100990.0,100970.0,0.3608]
[1734210281082,0.29445628,100980.0,100970.0,0.3608]
[1734210281288,0.2857718,100980.0,100970.0,0.3608]
[1734210282694,0.2857718,100980.0,100960.0,0.049524]
[1734210282695,0.049522,100970.0,100960.0,0.049524]
[1734210282899,0.2555769,100970.0,100960.0,0.049524]
[1734210283289,0.16726766,100970.0,100960.0,0.049524]
[1734210283492,0.16776766,100970.0,100960.0,0.14372117]
[1734210283800,0.25608202,100970.0,100960.0,0.14372117]
[1734210284597,0.25558202,100970.0,100960.0,0.14372117]
[1734210284986,0.25558202,100970.0,100960.0,0.50452117]
[1734210285189,0.13783636,100970.0,100960.0,0.50452117]
[1734210285602,0.13833636,100970.0,100960.0,0.50452117]
[1734210286693,0.08881436,100970.0,100960.0,0.50452117]
[1734210288393,0.01046908,100970.0,100960.0,0.50452117]
[1734210288599,0.00996908,100970.0,100960.0,0.56772117]
[1734210288894,0.25557902,100980.0,100970.0,0.049522]
[1734210289102,0.25557902,100980.0,100970.0,0.410322]
[1734210289491,0.25607902,100980.0,100970.0,0.410322]
[1734210290599,0.25557902,100980.0,100970.0,0.410322]
[1734210291703,0.25607902,100980.0,100970.0,0.410322]
[1734210292502,0.13783336,100980.0,100970.0,0.410322]
[1734210293208,0.14779223,100980.0,100970.0,0.410322]
[1734210293701,0.14829223,100980.0,100970.0,0.410322]
[1734210294496,0.14779223,100980.0,100970.0,0.410322]
[1734210295600,0.09877323,100980.0,100970.0,0.50451917]
[1734210295801,0.0005,100980.0,100970.0,0.53461917]
[1734210295997,0.0005,100980.0,100970.0,0.71242741]
[1734210296301,0.0005,100980.0,100970.0,0.94950506]
[1734210296503,0.22962736,100990.0,100970.0,0.94950506]
[1734210296700,0.22962736,100990.0,100980.0,0.50451417]
[1734210296896,0.23995203,100990.0,100980.0,0.50451417]
[1734210298589,0.24045203,100990.0,100980.0,0.50451417]
[1734210299195,0.35819769,100990.0,100980.0,0.50451417]
[1734210299696,0.35769769,100990.0,100980.0,0.50451417]
[1734210300191,0.35769769,100990.0,100980.0,0.68232241]
[1734210300606,0.35819769,100990.0,100980.0,0.68232241]
[1734210301298,0.26988333,100990.0,100980.0,0.32152241]
[1734210301496,0.26938333,100990.0,100980.0,0.049517]
[1734210301696,0.77747501,100990.0,100980.0,0.049517]
[1734210301903,0.65972935,100990.0,100980.0,0.049517]
[1734210302102,0.83647937,100990.0,100980.0,0.049517]
[1734210302498,0.83697937,100990.0,100980.0,0.049517]
[1734210302700,0.47617937,100990.0,100980.0,0.14371417]
[1734210302904,0.29942935,100990.0,100980.0,0.14371417]
[1734210303207,0.29942935,100990.0,100980.0,0.68232241]
[1734210304203,0.29942935,100990.0,100980.0,0.50451417]
[1734210304608,0.29892935,100990.0,100980.0,0.50451417]
[1734210304800,0.29892935,100990.0,100980.0,0.410317]
[1734210305412,0.47567937,100990.0,100980.0,0.410317]
[1734210305802,0.65972935,100990.0,100970.0,0.91940206]
[1734210306000,0.16762552,100980.0,100970.0,0.91940206]
[1734210307303,0.16762552,100980.0,100970.0,0.82520489]
[1734210307506,0.40911437,100980.0,100970.0,0.58812724]
[1734210307710,0.29100585,100980.0,100970.0,0.53860824]
[1734210307915,0.049522,100970.0,100960.0,0.82521089]
[1734210308114,0.35011795,100970.0,100960.0,0.82521089]
[1734210310405,0.26153397,100970.0,100960.0,0.82521089]
[1734210312001,0.26153397,100970.0,100960.0,0.46441089]
[1734210312316,0.40882565,100970.0,100960.0,0.22733324]
[1734210316508,0.41887588,100970.0,100960.0,0.22733324]
[1734210316706,0.41887588,100970.0,100960.0,0.17780824]
[1734210316905,0.51320231,100970.0,100960.0,0.17780824]
[1734210317112,0.049527,100960.0,100950.0,0.46491589]
[1734210317412,0.049527,100960.0,100950.0,0.22783824]
[1734210317413,0.315053,100960.0,100950.0,0.22783824]
[1734210317608,0.315053,100960.0,100950.0,0.22733824]
[1734210317813,0.40925017,100960.0,100950.0,0.04953]
[1734210318006,0.55761868,100960.0,100950.0,0.04953]
[1734210318315,0.67582038,100960.0,100950.0,0.04953]
[1734210318513,0.67582038,100960.0,100950.0,0.05003]
[1734210318705,0.31502038,100960.0,100950.0,0.05003]
[1734210319018,0.31502038,100960.0,100950.0,0.14422717]
[1734210319311,0.20683186,100960.0,100950.0,0.68283541]
[1734210319621,0.20683186,100960.0,100950.0,0.91941306]
[1734210319915,0.25635886,100960.0,100950.0,0.68233541]
[1734210320713,0.25635886,100960.0,100950.0,0.68283541]
[1734210321616,0.25635886,100960.0,100950.0,0.68233541]
[1734210322716,0.25635886,100960.0,100950.0,0.68283541]
[1734210323605,0.25635886,100960.0,100950.0,0.68233541]
[1734210324521,0.25635886,100960.0,100950.0,0.68283541]
[1734210325410,0.25635886,100960.0,100950.0,0.71583541]
[1734210325621,0.13815716,100960.0,100950.0,0.71583541]
[1734210326713,0.13815716,100960.0,100950.0,0.71533541]
[1734210327215,0.25635886,100960.0,100950.0,0.71533541]
[1734210328013,0.25635886,100960.0,100950.0,0.62113824]
[1734210330515,0.25635886,100960.0,100950.0,0.17780824]
[1734210330730,0.31502038,100960.0,100950.0,0.17780824]
[1734210331016,0.31502038,100960.0,100940.0,0.67791165]
[1734210331017,0.049531,100950.0,100940.0,0.82521989]
[1734210331227,0.28805381,100950.0,100940.0,0.58814224]
[1734210331411,0.28805381,100950.0,100940.0,0.410334]
[1734210331617,0.1995327,100950.0,100940.0,0.410834]
[1734210332623,0.1995327,100950.0,100940.0,0.410334]
[1734210333320,0.2880465,100950.0,100940.0,0.410334]
[1734210333620,0.20673125,100950.0,100940.0,0.68283941]
[1734210333823,0.20673125,100950.0,100940.0,0.74583941]
[1734210334020,0.31502238,100960.0,100950.0,0.049531]
[1734210334320,0.31502238,100960.0,100950.0,0.410331]
[1734210335321,0.31502238,100960.0,100950.0,0.58813924]
[1734210336624,0.31502238,100960.0,100950.0,0.68233641]
[1734210337722,0.31502238,100960.0,100950.0,0.95241406]
[1734210337926,0.40921955,100960.0,100950.0,0.77568589]
[1734210338129,0.55762068,100960.0,100950.0,0.17780824]
[1734210338318,0.19682068,100960.0,100950.0,0.22733924]
[1734210338919,0.19682068,100960.0,100950.0,0.17780824]
[1734210339117,0.049531,100950.0,100940.0,0.82522089]
[1734210339323,0.34855744,100950.0,100940.0,0.82522089]
[1734210339522,0.34855744,100950.0,100940.0,0.58814324]
[1734210342322,0.80355461,100950.0,100940.0,0.17780824]
[1734210342530,0.74936508,100950.0,100940.0,0.17780824]
[1734210342715,0.049536,100940.0,100930.0,0.46492689]
[1734210342920,0.19726013,100940.0,100930.0,0.46492689]
[1734210343121,0.31543943,100940.0,100930.0,0.46492689]
[1734210343519,0.31543943,100940.0,100930.0,0.22784924]
[1734210343731,0.31543943,100940.0,100930.0,0.22734924]
[1734210344629,0.31543943,100940.0,100930.0,0.22784924]
[1734210345726,0.31543943,100940.0,100930.0,0.22734924]
[1734210346630,0.31543943,100940.0,100930.0,0.22784924]